Cogmind - Beta 10.2 @@@ ROGUE MODE // 2021.10.06 @ 17:24:47 Player: ktur Result: Destroyed by H-88 Terminator with KE Penetrator Performance ------------- Evolutions (8) 4000 Regions Visited (28) 5600 Robots Destroyed (85) 425 Value Destroyed (2162) 2162 Prototype IDs (224) 4480 Alien Tech Used (8) 1600 Bonus (13613) 13613 TOTAL SCORE: 31880 Bonus ------- High Alert Combat Kills 13 Met Data Miner 300 Used Data Conduit 3000 Met Zhirov 300 Found Hidden Lab 3000 Decrypted A0 Command 3000 Used Core Reset Matrix 3000 Scanned by Researcher 500 Pursued by Intercept 500 Cogmind --------- Core Integrity 0/1950 Matter 131/300 Energy 100/100 System Corruption 34% Temperature Cool (0) Movement Core (50) Location -2/Section 7 Parts ------- > --- POWER (2) -------- (None) > --- PROPULSION (6) --- (None) > --- UTILITY (13) ----- Experimental Signal Interpreter Quantum Router > --- WEAPON (2) ------- (None) > --- INVENTORY (4) ---- Integrity Redistributor Subatomic Replicator Terrabomb Peak State ------------ > --- POWER ------------ Micro Fission Core Light Particle Reactor > --- PROPULSION ------- Cooled Cesium-ion Thruster Cooled Cesium-ion Thruster Cooled Cesium-ion Thruster Cooled Nuclear Pulse Thruster Cooled Nuclear Pulse Thruster Cooled Nuclear Pulse Thruster > --- UTILITY ---------- Experimental Power Amplifier Experimental Energy Well Experimental Sensor Array Experimental Signal Interpreter Advanced Reaction Control System Improved Cloaking Device Medium Regenerative Plating Advanced Shield Generator Experimental Hacking Suite Deep Network Scanner Deep Network Scanner Quantum Router > --- WEAPON ----------- Sigix Broadsword > --- INVENTORY -------- Micro Fission Core Transdimensional Reconstructor Subatomic Replicator Enhanced Nova Cannon [Rating: 182] Favorites ----------- Power Micro Fission Core Engine Light Ion Engine Power Core Micro Fission Core Reactor Fusion Reactor Propulsion Cooled VTOL Module Treads Light Treads Flight Unit Cooled VTOL Module Utility Large Storage Unit Device Experimental Sensor Array Storage Large Storage Unit Processor Advanced Signal Interpreter Hackware Hacking Suite Protection Medium Regenerative Plating Weapon Assault Rifle Energy Gun Medium Laser Energy Cannon Enhanced Nova Cannon Ballistic Gun Assault Rifle Launcher Improved Grenade Launcher Slashing Weapon Vibroblade Piercing Weapon Heavy Pick Special Melee Weapon Improved Datajack Build | -11 -10 -10 -10 -9 -8 -7 -7 -7 -7 -7 -7 -6 -6 -6 -6 -5 -5 -5 -5 -4 -4 -4 -4 -3 -3 -2 -2 -2 ------- Run | Scr Mat Min Exi Min Mat Fac Was Fac Low Low Dat Pro Fac Low Low Fac Upp Upp Zhi Pro Fac Arm Lab Res Tes Res Qua Sec Slots Evolved 16 | . . . . . 4 2 . . . . . . 2 . . 2 . . . . 2 . . 2 . 2 . . Power 1 | . . . . . . . . . . . . . 1 . . . . . . . . . . . . . . . Propulsion 4 | . . . . . 1 1 . . . . . . 1 . . . . . . . 1 . . . . . . . Utility 11 | . . . . . 3 1 . . . . . . . . . 2 . . . . 1 . . 2 . 2 . . Weapon . | . . . . . . . . . . . . . . . . . . . . . . . . . . . . . Parts Attached 138 | 6 7 1 . . 22 26 2 1 . 4 4 6 9 1 . 7 . 1 7 1 2 1 12 2 1 3 4 8 Power 17 | 1 1 1 . . 3 1 . . . . . 1 3 . . . . . 2 . . . 1 . . . 1 2 Engine 4 | 1 1 1 . . 1 . . . . . . . . . . . . . . . . . . . . . . . Core 11 | . . . . . 2 1 . . . . . 1 3 . . . . . 1 . . . 1 . . . 1 1 Reactor 2 | . . . . . . . . . . . . . . . . . . . 1 . . . . . . . . 1 Propulsion 35 | 2 2 . . . 7 8 . . . . . 2 6 . . 2 . 1 3 . 1 . . . . . 1 . Treads 10 | 2 2 . . . 6 . . . . . . . . . . . . . . . . . . . . . . . Leg . | . . . . . . . . . . . . . . . . . . . . . . . . . . . . . Wheel . | . . . . . . . . . . . . . . . . . . . . . . . . . . . . . Hover . | . . . . . . . . . . . . . . . . . . . . . . . . . . . . . Flight 25 | . . . . . 1 8 . . . . . 2 6 . . 2 . 1 3 . 1 . . . . . 1 . Utility 47 | 1 2 . . . 5 12 . 1 . . 3 . . . . 3 . . 2 1 1 1 8 2 1 2 . 2 Device 20 | . . . . . 3 4 . . . . . . . . . 2 . . . 1 . 1 5 2 1 . . 1 Storage 5 | 1 2 . . . 1 . . . . . . . . . . . . . . . . . . . . 1 . . Processor 4 | . . . . . 1 2 . . . . . . . . . . . . . . . . . . . 1 . . Hackware 13 | . . . . . . 5 . 1 . . 3 . . . . 1 . . 1 . . . 2 . . . . . Protection 5 | . . . . . . 1 . . . . . . . . . . . . 1 . 1 . 1 . . . . 1 Artifact . | . . . . . . . . . . . . . . . . . . . . . . . . . . . . . Weapon 39 | 2 2 . . . 7 5 2 . . 4 1 3 . 1 . 2 . . . . . . 3 . . 1 2 4 Energy Gun 5 | 2 . . . . . . . . . . . . . . . . . . . . . . 3 . . . . . Energy Cannon 4 | . . . . . . . . . . . . . . . . . . . . . . . . . . 1 . 3 Ballistic Gun 8 | . 2 . . . 6 . . . . . . . . . . . . . . . . . . . . . . . Ballistic Cannon . | . . . . . . . . . . . . . . . . . . . . . . . . . . . . . Launcher 5 | . . . . . 1 . . . . 2 . 1 . . . 1 . . . . . . . . . . . . Special Weapon . | . . . . . . . . . . . . . . . . . . . . . . . . . . . . . Impact Weapon . | . . . . . . . . . . . . . . . . . . . . . . . . . . . . . Slashing Weapon 8 | . . . . . . 1 1 . . . 1 1 . . . 1 . . . . . . . . . . 2 1 Piercing Weapon 5 | . . . . . . 2 1 . . 2 . . . . . . . . . . . . . . . . . . Special Melee Weapon 4 | . . . . . . 2 . . . . . 1 . 1 . . . . . . . . . . . . . . Unidentified Prototypes 12 | . . . . . 2 . 1 . . . 3 . . . . . . . 1 . . 1 3 . . . 1 . Parts Lost 39 | . 3 . . . 9 1 . . . . 1 2 . . . . . 1 . 1 . . 1 . . . . 20 Power 5 | . 1 . . . . . . . . . . 2 . . . . . . . . . . . . . . . 2 Propulsion 10 | . . . . . 4 . . . . . . . . . . . . . . . . . . . . . . 6 Utility 16 | . . . . . 2 1 . . . . . . . . . . . 1 . 1 . . 1 . . . . 10 Weapon 8 | . 2 . . . 3 . . . . . 1 . . . . . . . . . . . . . . . . 2 Highest Loss Streak 8 | . 2 . . . 2 1 . . . . 1 2 . . . . . 1 . 1 . . 1 . . . . 8 Average Slot Usage (%) 93 | . 94 100 100 100 88 98 92 94 100 100 100 91 90 98 100 96 100 99 97 100 99 100 92 98 98 90 90 69 Engine 4 | . 13 14 14 14 2 . . . . . . . 3 . . . . . . . . . . . . . . . Core 5 | . . . . . 6 7 7 7 7 7 7 6 7 13 13 11 11 11 11 11 10 10 10 9 9 8 7 6 Treads 11 | . 27 28 28 28 19 . . . . . . . . . . . . . . . . . . . . . . . Flight 15 | . . . . . . 29 30 30 30 30 30 30 31 33 33 29 29 29 29 29 30 31 31 28 28 26 25 18 Device 9 | . . . . . 15 8 7 7 7 7 7 7 6 6 6 9 17 16 11 17 15 15 11 22 21 21 21 15 Storage 11 | . 24 28 28 28 21 . . . . . . . . . . . . . . . . . . . . . 4 3 Processor 4 | . . . . . 5 7 7 7 7 7 7 7 6 6 6 5 5 5 5 5 5 5 5 4 4 4 4 4 Hackware 12 | . . . . . . 27 23 24 30 30 30 30 26 26 26 27 23 23 25 17 15 15 16 19 19 17 17 15 Ballistic Gun 9 | . 21 28 28 28 17 . . . . . . . . . . . . . . . . . . . . . . . Slashing Weapon 1 | . . . . . . 1 . . . . 7 7 6 6 6 4 5 5 5 5 5 5 5 4 4 4 4 1 Piercing Weapon 1 | . . . . . . 5 7 7 7 6 7 . . . . . . . . . . . . . . . . . Special Melee Weapon 2 | . . . . . . 6 7 7 7 7 . . . 4 6 5 5 5 5 5 5 5 3 . . . . . Naked Turns . | . . . . . . . . . . . . . . . . . . . . . . . . . . . . . Heaviest Build 64 | 11 39 39 39 39 64 12 11 11 11 15 14 10 15 16 16 18 18 18 18 21 28 28 35 43 43 51 51 47 Greatest Support 75 | 40 40 40 40 40 60 24 11 11 11 21 27 26 37 23 23 31 26 45 43 63 75 63 51 75 63 63 75 67 Greatest Overweight (x) 14 | . . . . . 3 . . . . . . . . . . . . . . . . . . . . . . 14 Average Overweight (x) . | . . . . . . . . . . . . . . . . . . . . . . . . . . . . . Largest Inventory Capacity 22 | 6 16 16 16 16 22 22 4 4 4 4 4 4 4 4 4 4 4 4 4 4 4 4 4 4 4 4 4 4 Average Capacity 9 | 5 13 16 16 16 18 4 4 4 4 4 4 4 4 4 4 4 4 4 4 4 4 4 4 4 4 4 4 4 Most Carried 22 | 6 14 16 16 16 22 21 4 4 4 4 4 4 4 4 4 4 4 4 4 4 3 3 4 4 4 4 4 4 Average Carried 8 | 3 8 15 16 15 17 4 4 4 4 3 4 3 3 3 4 3 4 4 3 3 2 2 3 4 4 4 3 3 Final Capacity 22 | 6 16 16 16 16 22 4 4 4 4 4 4 4 4 4 4 4 4 4 4 4 4 4 4 4 4 4 4 4 Final Carried 22 | 6 14 16 16 16 22 4 4 4 4 4 4 4 4 4 4 4 4 4 4 4 2 2 4 4 4 4 3 3 Class Distribution -------------------- 39% | Mutant 28% | Wizard-Sprinter 20% | Hacker-Sprinter 7% | Hauler-Mutant Dominant Class ---------------- Mutant | -10/Materials Mutant | -10/Mines Mutant | -10/Exiles Mutant | -9/Mines Mutant | -8/Materials Hacker-Sprinter | -7/Factory Hacker-Sprinter | -7/Waste Hacker-Sprinter | -7/Factory Hacker-Sprinter | -7/Lower Caves Hacker-Sprinter | -7/Lower Caves Hacker-Sprinter | -7/Data Miner Wizard-Sprinter | -6/Proximity Caves Wizard-Sprinter | -6/Factory Wizard-Sprinter | -6/Lower Caves Wizard-Sprinter | -6/Lower Caves Wizard-Sprinter | -5/Factory Wizard-Sprinter | -5/Upper Caves Wizard-Sprinter | -5/Upper Caves Wizard-Sprinter | -5/Zhirov Wizard-Sprinter | -4/Proximity Caves Wizard-Sprinter | -4/Factory Wizard-Sprinter | -4/Armory Wizard-Sprinter | -4/Lab Wizard-Sprinter | -3/Research Wizard-Sprinter | -3/Testing Wizard-Sprinter | -2/Research Wizard-Sprinter | -2/Quarantine Wizard-Sprinter | -2/Section 7 Resources | -11 -10 -10 -10 -9 -8 -7 -7 -7 -7 -7 -7 -6 -6 -6 -6 -5 -5 -5 -5 -4 -4 -4 -4 -3 -3 -2 -2 -2 ----------- Run | Scr Mat Min Exi Min Mat Fac Was Fac Low Low Dat Pro Fac Low Low Fac Upp Upp Zhi Pro Fac Arm Lab Res Tes Res Qua Sec Matter Collected 2631 | 192 394 223 . . 881 260 . . 30 20 28 39 . 16 . . 276 10 . . . . 76 . 32 . . 154 Remotely . | . . . . . . . . . . . . . . . . . . . . . . . . . . . . . Salvage Created 3090 | . 564 244 . . 1519 92 . . . 25 28 21 . . . . 301 34 . . . . 76 . 32 . . 154 Parts 177 | . 27 20 . . 79 14 . . . 7 4 2 . . . . 4 1 . . . . 6 . 3 . . 10 Haulers Intercepted 5 | . 2 . . . 2 . . . . . . . . . . . . . . . . . . . . . . 1 Recyclers Shooed 4 | . . . . . 4 . . . . . . . . . . . . . . . . . . . . . . . Parts Field Recycled . | . . . . . . . . . . . . . . . . . . . . . . . . . . . . . Retrieved Matter . | . . . . . . . . . . . . . . . . . . . . . . . . . . . . . Parts Self-Destructed 23 | . . . . . . . . . 1 19 . 1 . . . . . 2 . . . . . . . . . . Prevented . | . . . . . . . . . . . . . . . . . . . . . . . . . . . . . Kills | -11 -10 -10 -10 -9 -8 -7 -7 -7 -7 -7 -7 -6 -6 -6 -6 -5 -5 -5 -5 -4 -4 -4 -4 -3 -3 -2 -2 -2 ------- Run | Scr Mat Min Exi Min Mat Fac Was Fac Low Low Dat Pro Fac Low Low Fac Upp Upp Zhi Pro Fac Arm Lab Res Tes Res Qua Sec Combat Hostiles Destroyed 64 | . 13 11 . . 30 1 . . . 3 . 3 . . . . . 1 . . . . 1 . . . . 1 Melee 5 | . . . . . 1 1 . . . . . . . . . . . 1 . . . . 1 . . . . 1 Guns 50 | . 13 11 . . 26 . . . . . . . . . . . . . . . . . . . . . . . AOE 9 | . . . . . 3 . . . . 3 . 3 . . . . . . . . . . . . . . . . Classes Destroyed 14 | . 5 . . . 6 1 . . . . . . . . . . 1 1 . . . . . . . . . . Worker 1 | . . . . . 1 . . . . . . . . . . . . . . . . . . . . . . . Tunneler 2 | . 1 . . . 1 . . . . . . . . . . . . . . . . . . . . . . . Hauler 5 | . 2 . . . 2 . . . . . . . . . . . . . . . . . . . . . . 1 Recycler 4 | . . . . . 4 . . . . . . . . . . . . . . . . . . . . . . . Operator 5 | . 2 . . . 2 1 . . . . . . . . . . . . . . . . . . . . . . Watcher 3 | . . . . . 1 1 . . . . . . . . . . . . . . . . . . 1 . . . Swarmer 33 | . 6 9 . . 12 . . . . 3 . 3 . . . . . . . . . . . . . . . . Grunt 19 | . 7 2 . . 10 . . . . . . . . . . . . . . . . . . . . . . . Brawler 1 | . . . . . 1 . . . . . . . . . . . . . . . . . . . . . . . Duelist 1 | . . . . . 1 . . . . . . . . . . . . . . . . . . . . . . . Sentry 6 | . . . . . 6 . . . . . . . . . . . . . . . . . . . . . . . Hunter 1 | . . . . . . . . . . . . . . . . . . 1 . . . . . . . . . . Programmer 2 | . . . . . . 1 . . . . . . . . . . . . . . . . . . . . . 1 Decomposer 2 | . . . . . . . . . . . . . . . . . 2 . . . . . . . . . . . Packrat 3 | . . . . . . . . . . . . . . . . . 3 . . . . . . . . . . . Samaritan 1 | . . . . . . . . . . . . . . . . . 1 . . . . . . . . . . . Best Kill Streak 8 | . 3 3 . . 8 3 . . . 3 1 4 . . . . . 1 . . . . 1 . 1 . . 1 Combat Bots Only 4 | . 3 3 . . 4 1 . . . 3 . 3 . . . . . 1 . . . . 1 . . . . 1 Max Kills in Single Turn 3 | . 2 1 . . 3 1 . . . 2 1 2 . . . . 1 1 . . . . 1 . 1 . . 1 Gunslinging 1 | . 1 . . . 1 . . . . . . . . . . . . . . . . . . . . . . . Exploded 2 | . . . . . 2 . . . . 2 . 2 . . . . . . . . . . . . . . . . Melee 1 | . . . . . 1 1 . . . . . . . . . . . 1 . . . . 1 . . . . 1 Uniques/NPCs Destroyed 2 | . . . . . . . . . . . 1 . . . . . . . . . . . 1 . . . . . Data Miner (-7/Data Miner) A5 (-4/Lab) Combat | -11 -10 -10 -10 -9 -8 -7 -7 -7 -7 -7 -7 -6 -6 -6 -6 -5 -5 -5 -5 -4 -4 -4 -4 -3 -3 -2 -2 -2 -------- Run | Scr Mat Min Exi Min Mat Fac Was Fac Low Low Dat Pro Fac Low Low Fac Upp Upp Zhi Pro Fac Arm Lab Res Tes Res Qua Sec Damage Taken 7728 | . 445 249 . 81 1661 31 . . . 28 138 148 140 . . . . 94 . 39 . 39 595 38 43 22 75 3862 Core 2529 | . 44 46 . 22 186 . . . . . 43 27 55 . . . . 36 . . . . 208 . 21 . . 1841 Absorbed by Shields 460 | . . . . . . . . . . . . . . . . . . . . . . . . 14 16 8 26 396 Core Remaining (%) 83 | 100 . . . 55 66 . . . . . . 90 . . 93 . . . . 96 . . 72 . 98 . . . Volleys Fired 203 | . 42 22 . . 112 . . . . 2 . 2 . . . 2 . . . . . . . . . . 15 6 Largest 2 | . 2 2 . . 2 . . . . 1 . 1 . . . 1 . . . . . . . . . . 1 1 Hottest 120 | . 100 40 . . 50 . . . . 39 . 39 . . . 39 . . . . . . . . . . 120 120 Shots Fired 371 | . 81 44 . . 219 . . . . 2 . 2 . . . 2 . . . . . . . . . . 15 6 Gun 342 | . 81 44 . . 217 . . . . . . . . . . . . . . . . . . . . . . . Cannon 21 | . . . . . . . . . . . . . . . . . . . . . . . . . . . 15 6 Launcher 8 | . . . . . 2 . . . . 2 . 2 . . . 2 . . . . . . . . . . . . Special . | . . . . . . . . . . . . . . . . . . . . . . . . . . . . . Kinetic 312 | . 51 44 . . 217 . . . . . . . . . . . . . . . . . . . . . . . Thermal 51 | . 30 . . . . . . . . . . . . . . . . . . . . . . . . . 15 6 Explosive 8 | . . . . . 2 . . . . 2 . 2 . . . 2 . . . . . . . . . . . . Electromagnetic . | . . . . . . . . . . . . . . . . . . . . . . . . . . . . . Robot Hit Streak 20 | . 6 8 . . 20 . . . . . . 3 . . . . . . . . . . . . . . . 4 Robot Miss Streak 3 | . 3 2 . . 3 . . . . . . . . . . . . . . . . . . . . . . . Penetration Max . | . . . . . . . . . . . . . . . . . . . . . . . . . . . . . Secondary Targets 10 | . 1 2 . . 7 . . . . . . . . . . . . . . . . . . . . . . . Max Gunslinging Chain 1 | . 1 1 . . 1 . . . . . . . . . . . . . . . . . . . . . . . Shots Hit Robots 289 | . 49 31 . . 164 6 . . . . 1 1 1 . . . 6 2 . . . . 17 . 2 1 . 8 Core Hits 132 | . 28 13 . . 65 3 . . . 6 1 3 . . . . 4 1 . . . . 5 . 1 . . 2 Critical Hits 4 | . . . . . 2 . . . . . . . . . . . 1 . . . . . . . . . . 1 Critical Kills 2 | . . . . . . . . . . . . . . . . . 1 . . . . . . . . . . 1 Critical Parts Destroyed 2 | . . . . . 2 . . . . . . . . . . . . . . . . . . . . . . . Melee Attacks 204 | . . . . . . 41 . 13 10 3 1 9 11 1 . 27 8 7 . . 4 5 25 4 6 6 6 17 Impact . | . . . . . . . . . . . . . . . . . . . . . . . . . . . . . Slashing 149 | . . . . . . 12 . . . . 1 9 11 1 . 27 8 7 . . 4 5 25 4 6 6 6 17 Piercing 53 | . . . . . . 27 . 13 10 3 . . . . . . . . . . . . . . . . . . Sneak Attacks 10 | . . . . . . 2 . . . . 1 . . . . . 6 . . . . . . . . . . 1 Combat Hostiles . | . . . . . . . . . . . . . . . . . . . . . . . . . . . . . Follow-up Attacks . | . . . . . . . . . . . . . . . . . . . . . . . . . . . . . Damage Inflicted 8265 | . 665 388 . . 2777 281 . . . 199 183 492 60 . . . 1033 135 . . . . 1041 . 141 60 . 810 Guns 3484 | . 662 376 . . 2446 . . . . . . . . . . . . . . . . . . . . . . . Cannons . | . . . . . . . . . . . . . . . . . . . . . . . . . . . . . Explosions 1006 | . . . . . 315 . . . . 199 . 492 . . . . . . . . . . . . . . . . Melee 3744 | . . . . . . 281 . . . . 183 . 60 . . . 1033 135 . . . . 1041 . 141 60 . 810 Ramming 31 | . 3 12 . . 16 . . . . . . . . . . . . . . . . . . . . . . . Kinetic 3259 | . 437 376 . . 2446 . . . . . . . . . . . . . . . . . . . . . . . Thermal 225 | . 225 . . . . . . . . . . . . . . . . . . . . . . . . . . . Explosive 1006 | . . . . . 315 . . . . 199 . 492 . . . . . . . . . . . . . . . . Electromagnetic . | . . . . . . . . . . . . . . . . . . . . . . . . . . . . . Impact . | . . . . . . . . . . . . . . . . . . . . . . . . . . . . . Slashing 3744 | . . . . . . 281 . . . . 183 . 60 . . . 1033 135 . . . . 1041 . 141 60 . 810 Piercing . | . . . . . . . . . . . . . . . . . . . . . . . . . . . . . Highest Corruption 34 | . 1 1 1 1 . 2 2 2 2 2 2 2 . . . . . . . . . . 6 . . . . 34 Average Corruption 2 | . 1 1 1 1 . 1 2 2 2 2 2 2 . . . . . . . . . . 4 . . . . 18 Corruption Purged . | . . . . . . . . . . . . . . . . . . . . . . . . . . . . . Effects 35 | . 2 2 . 1 . 7 1 2 1 2 . 1 . . . . . . . . . . . . . . . 16 Message Errors 9 | . 1 1 . 1 . 1 1 . . . . . . . . . . . . . . . . . . . . 4 Matter Fused 4 | . . . . . . . . . . . . . . . . . . . . . . . . . . . . 4 Heat Flow Errors 6 | . . . . . . 1 . 1 1 2 . 1 . . . . . . . . . . . . . . . . Energy Discharges 2 | . . . . . . 2 . . . . . . . . . . . . . . . . . . . . . . Data Loss (minor) 3 | . 1 1 . . . 1 . . . . . . . . . . . . . . . . . . . . . . Data Loss (major) 1 | . . . . . . . . . . . . . . . . . . . . . . . . . . . . 1 Misdirections 7 | . . . . . . . . . . . . . . . . . . . . . . . . . . . . 7 Targeting Errors 3 | . . . . . . 2 . 1 . . . . . . . . . . . . . . . . . . . . Overload Shots . | . . . . . . . . . . . . . . . . . . . . . . . . . . . . . Overflow Damage 665 | . . . . . . 12 . . . . . 20 10 . . . 304 54 . . . . 14 . 20 5 . 226 Projectiles . | . . . . . . . . . . . . . . . . . . . . . . . . . . . . . Explosions 20 | . . . . . . . . . . . . 20 . . . . . . . . . . . . . . . . Melee 645 | . . . . . . 12 . . . . . . 10 . . . 304 54 . . . . 14 . 20 5 . 226 Knockbacks . | . . . . . . . . . . . . . . . . . . . . . . . . . . . . . Impact . | . . . . . . . . . . . . . . . . . . . . . . . . . . . . . Kinetic . | . . . . . . . . . . . . . . . . . . . . . . . . . . . . . Secondary . | . . . . . . . . . . . . . . . . . . . . . . . . . . . . . Self-Inflicted Damage 24 | . . . . . . . . . . . . 24 . . . . . . . . . . . . . . . . Shots 2 | . . . . . . . . . . . . 2 . . . . . . . . . . . . . . . . Rammed 5 | . 1 1 . . 3 . . . . . . . . . . . . . . . . . . . . . . . Targets Rammed 7 | . 1 1 . . 5 . . . . . . . . . . . . . . . . . . . . . . . Kicked . | . . . . . . . . . . . . . . . . . . . . . . . . . . . . . Crushed 2 | . . . . . 2 . . . . . . . . . . . . . . . . . . . . . . . Highest Temperature 340 | . 244 2 . . 6 205 . 185 108 231 100 253 134 . . 1 . 66 . 205 . 82 20 6 152 146 166 340 Average Temperature 75 | . 117 2 . . 6 102 . 97 58 93 51 122 101 . . 1 . 37 . 76 . 19 7 6 118 33 31 69 Received Heat Transfer 981 | . 189 54 . 45 576 . . . . . 18 9 30 . . . . 18 . . . . . 6 6 6 6 18 Siege Activations . | . . . . . . . . . . . . . . . . . . . . . . . . . . . . . Robots Corrupted . | . . . . . . . . . . . . . . . . . . . . . . . . . . . . . Combat Hostiles . | . . . . . . . . . . . . . . . . . . . . . . . . . . . . . Parts Fried . | . . . . . . . . . . . . . . . . . . . . . . . . . . . . . Impact Corruptions . | . . . . . . . . . . . . . . . . . . . . . . . . . . . . . Robots Melted . | . . . . . . . . . . . . . . . . . . . . . . . . . . . . . Combat Hostiles . | . . . . . . . . . . . . . . . . . . . . . . . . . . . . . Parts Melted 3 | . 2 . . . . . . . . . . . . . . . . 1 . . . . . . . . . . Heat Transferred 666 | . 666 . . . . . . . . . . . . . . . . . . . . . . . . . . . Parts Sabotaged . | . . . . . . . . . . . . . . . . . . . . . . . . . . . . . Parts Stolen . | . . . . . . . . . . . . . . . . . . . . . . . . . . . . . Parts Stripped . | . . . . . . . . . . . . . . . . . . . . . . . . . . . . . Power Chain Reactions . | . . . . . . . . . . . . . . . . . . . . . . . . . . . . . Missiles Intercepted . | . . . . . . . . . . . . . . . . . . . . . . . . . . . . . Alert | -11 -10 -10 -10 -9 -8 -7 -7 -7 -7 -7 -7 -6 -6 -6 -6 -5 -5 -5 -5 -4 -4 -4 -4 -3 -3 -2 -2 -2 ------- Run | Scr Mat Min Exi Min Mat Fac Was Fac Low Low Dat Pro Fac Low Low Fac Upp Upp Zhi Pro Fac Arm Lab Res Tes Res Qua Sec Peak Influence 550 | . 271 305 . . 428 438 28 550 . . . . 58 . . 60 . . . . 45 46 . 34 61 69 131 168 Initial 167 | . . 30 . . . 167 28 19 . . . . 40 . . 5 . . . . 37 21 . . 18 33 38 35 Average 111 | . 75 181 . . 204 95 28 145 . . . . 14 . . 8 . . . . 39 28 . 11 49 49 54 82 Maximum Alert Level 2 | . 1 1 . . 2 2 . 2 . . . . . . . . . . . . . . . . . . . . Low Security (%) 78 | 100 89 53 . 100 53 80 100 84 . . . . 100 . . 100 . . . . 100 100 . 100 100 100 100 100 Level 1 17 | . 10 46 . . 37 16 . . . . . . . . . . . . . . . . . . . . . . Level 2 3 | . . . . . 9 3 . 15 . . . . . . . . . . . . . . . . . . . . Level 3 . | . . . . . . . . . . . . . . . . . . . . . . . . . . . . . Level 4 . | . . . . . . . . . . . . . . . . . . . . . . . . . . . . . Level 5 . | . . . . . . . . . . . . . . . . . . . . . . . . . . . . . High Security . | . . . . . . . . . . . . . . . . . . . . . . . . . . . . . Max Security . | . . . . . . . . . . . . . . . . . . . . . . . . . . . . . Squads Dispatched 27 | . 3 . . . 6 4 . 5 . . . . . . . 1 . . . . . . . . . . . 8 Investigation 10 | . 1 . . . 2 4 . 3 . . . . . . . . . . . . . . . . . . . . Extermination 3 | . . . . . . . . 1 . . . . . . . . . . . . . . . . . . . 2 Reinforcement 9 | . 2 . . . 2 . . 1 . . . . . . . 1 . . . . . . . . . . . 3 Assault . | . . . . . . . . . . . . . . . . . . . . . . . . . . . . . Garrison 2 | . . . . . 2 . . . . . . . . . . . . . . . . . . . . . . . Intercept 3 | . . . . . . . . . . . . . . . . . . . . . . . . . . . . 3 Construction Impeded . | . . . . . . . . . . . . . . . . . . . . . . . . . . . . . Haulers Reinforced . | . . . . . . . . . . . . . . . . . . . . . . . . . . . . . Stealth | -11 -10 -10 -10 -9 -8 -7 -7 -7 -7 -7 -7 -6 -6 -6 -6 -5 -5 -5 -5 -4 -4 -4 -4 -3 -3 -2 -2 -2 --------- Run | Scr Mat Min Exi Min Mat Fac Was Fac Low Low Dat Pro Fac Low Low Fac Upp Upp Zhi Pro Fac Arm Lab Res Tes Res Qua Sec Distress Signals 16 | . 2 . . . 8 2 . 1 . . . . . . . . . . . . . . . . 2 1 . . Communications Jammed . | . . . . . . . . . . . . . . . . . . . . . . . . . . . . . Distress Signals . | . . . . . . . . . . . . . . . . . . . . . . . . . . . . . Times Spotted 191 | . 26 11 . 3 48 18 1 6 . 4 4 8 2 . . 1 4 5 . 5 . 5 1 6 5 3 2 23 Peak Tracking Total 9 | . 5 3 . 3 4 5 1 6 . 6 4 7 1 . . 2 4 4 . 5 . 4 1 6 8 2 2 9 Tactical Retreats 15 | . . 1 . . 1 2 . 1 . 1 . 1 . . . . . 2 . 1 . . . . . . . 5 Traps | -11 -10 -10 -10 -9 -8 -7 -7 -7 -7 -7 -7 -6 -6 -6 -6 -5 -5 -5 -5 -4 -4 -4 -4 -3 -3 -2 -2 -2 ------- Run | Scr Mat Min Exi Min Mat Fac Was Fac Low Low Dat Pro Fac Low Low Fac Upp Upp Zhi Pro Fac Arm Lab Res Tes Res Qua Sec Traps Triggered 8 | . 2 . . . 2 2 . . . . . . 1 . . . . . . . . . . . . . . 1 Indirectly . | . . . . . . . . . . . . . . . . . . . . . . . . . . . . . Trap Hack Attempts . | . . . . . . . . . . . . . . . . . . . . . . . . . . . . . Triggered . | . . . . . . . . . . . . . . . . . . . . . . . . . . . . . Disarmed . | . . . . . . . . . . . . . . . . . . . . . . . . . . . . . Reprogrammed . | . . . . . . . . . . . . . . . . . . . . . . . . . . . . . Reused . | . . . . . . . . . . . . . . . . . . . . . . . . . . . . . Traps Extracted . | . . . . . . . . . . . . . . . . . . . . . . . . . . . . . Installed . | . . . . . . . . . . . . . . . . . . . . . . . . . . . . . Triggered 1 | . . . . . . . . . 1 . . . . . . . . . . . . . . . . . . . Machines | -11 -10 -10 -10 -9 -8 -7 -7 -7 -7 -7 -7 -6 -6 -6 -6 -5 -5 -5 -5 -4 -4 -4 -4 -3 -3 -2 -2 -2 ---------- Run | Scr Mat Min Exi Min Mat Fac Was Fac Low Low Dat Pro Fac Low Low Fac Upp Upp Zhi Pro Fac Arm Lab Res Tes Res Qua Sec Machines Disabled 14 | . 1 . . . . 1 . . . . . . . 1 . . . . . . . . 1 . 1 . 5 4 Max in Single Turn 1 | . 1 . . . . 1 . . . . . . . 1 . . . . . . . . 1 . 1 . 1 1 Garrison Access 3 | . . . . . 1 1 . 1 . . . . . . . . . . . . . . . . . . . . Machines Sabotaged . | . . . . . . . . . . . . . . . . . . . . . . . . . . . . . Garrisons Compromised . | . . . . . . . . . . . . . . . . . . . . . . . . . . . . . Overloaded Fab Kills . | . . . . . . . . . . . . . . . . . . . . . . . . . . . . . Fab Network Shutdowns 2 | . . . . . . 1 . 1 . . . . . . . . . . . . . . . . . . . . Hacking | -11 -10 -10 -10 -9 -8 -7 -7 -7 -7 -7 -7 -6 -6 -6 -6 -5 -5 -5 -5 -4 -4 -4 -4 -3 -3 -2 -2 -2 --------- Run | Scr Mat Min Exi Min Mat Fac Was Fac Low Low Dat Pro Fac Low Low Fac Upp Upp Zhi Pro Fac Arm Lab Res Tes Res Qua Sec Machines Accessed 83 | . 8 . 1 . 7 18 . 11 . 2 4 . 6 1 . 3 . 1 5 1 . . 2 1 1 1 3 7 Terminals 43 | . 5 . . . 4 12 . 5 . . . . 4 . . 2 . . . 1 . . . 1 . . 2 7 Fabricators 7 | . . . . . . 3 . 1 . . . . 1 . . 1 . . . . . . . . 1 . . . Repair Stations 5 | . 1 . . . . 1 . . . . . . 1 . . . . . . . . . . . . 1 1 . Recycling Units 6 | . 2 . . . 1 1 . 2 . . . . . . . . . . . . . . . . . . . . Scanalyzers 2 | . . . . . 1 . . 1 . . . . . . . . . . . . . . . . . . . . Garrison Access 4 | . . . . . 1 1 . 2 . . . . . . . . . . . . . . . . . . . . Total Hacks 294 | . 23 . 4 . 15 65 . 27 . 5 26 . 33 1 . 22 . 1 14 1 . . 20 5 2 2 17 11 Successful 224 | . 14 . 4 . 3 47 . 15 . 5 26 . 22 1 . 18 . 1 14 1 . . 20 4 2 2 15 10 Failed 70 | . 9 . . . 12 18 . 12 . . . . 11 . . 4 . . . . . . . 1 . . 2 1 Catastrophic 8 | . . . . . 2 2 . 1 . . . . 3 . . . . . . . . . . . . . . . Database Lockouts . | . . . . . . . . . . . . . . . . . . . . . . . . . . . . . Manual 133 | . 13 . . . 10 42 . 14 . . . . 21 . . 16 . . . . . . . 3 1 . 9 4 Terminals 157 | . 17 . . . 10 48 . 17 . . . . 21 . . 14 . . . 1 . . . 5 . . 13 11 Fabricators 36 | . . . . . . 12 . 3 . . . . 11 . . 8 . . . . . . . . 2 . . . Repair Stations 14 | . 4 . . . . 3 . . . . . . 1 . . . . . . . . . . . . 2 4 . Recycling Units 7 | . 2 . . . 2 1 . 2 . . . . . . . . . . . . . . . . . . . . Scanalyzers 3 | . . . . . 1 . . 2 . . . . . . . . . . . . . . . . . . . . Garrison Access 6 | . . . . . 2 1 . 3 . . . . . . . . . . . . . . . . . . . . Terminal Hacks 139 | . 7 . 4 . . 17 . 5 . 5 26 . 9 1 . 7 . 1 14 1 . . 20 3 . . 9 10 Record 46 | . . . 4 . . . . . . 4 11 . . . . . . . 6 1 . . 20 . . . . . Part Schematic 21 | . . . . . . 4 . 1 . . 6 . 2 . . 1 . . 4 . . . . . . . 3 . Robot Schematic 6 | . . . . . . . . . . . 6 . . . . . . . . . . . . . . . . . Robot Analysis 3 | . 2 . . . . . . . . . . . . . . . . . . . . . . . . . 1 . Prototype ID Bank 7 | . . . . . . . . . . . 3 . . . . . . . 4 . . . . . . . . . Open Door 8 | . . . . . . . . . . 1 . . . 1 . . . 1 . . . . . . . . . 5 Branch Access Points 5 | . . . . . . 1 . 1 . . . . 1 . . 1 . . . . . . . 1 . . . . Emergency Access Points 1 | . 1 . . . . . . . . . . . . . . . . . . . . . . . . . . . Terminal Index 1 | . . . . . . 1 . . . . . . . . . . . . . . . . . . . . . . Alert Level 3 | . 1 . . . . 1 . . . . . . . . . . . . . . . . . . . . . 1 Unreport Threat 22 | . 1 . . . . 7 . 3 . . . . 3 . . 3 . . . . . . . 2 . . 2 1 Locate Traps 5 | . 1 . . . . 2 . . . . . . 1 . . . . . . . . . . . . . . 1 Maintenance Status 1 | . . . . . . . . . . . . . . . . . . . . . . . . . . . 1 . Recall Reinforcements 1 | . . . . . . . . . . . . . . . . 1 . . . . . . . . . . . . Zone Layout 8 | . 1 . . . . 1 . . . . . . 2 . . 1 . . . . . . . . . . 2 1 Activate Exoskeleton 1 | . . . . . . . . . . . . . . . . . . . . . . . . . . . . 1 Fabricator Hacks 25 | . . . . . . 8 . 2 . . . . 8 . . 6 . . . . . . . . 1 . . . Load Schematic 9 | . . . . . . 3 . 1 . . . . 3 . . 2 . . . . . . . . . . . . Build 16 | . . . . . . 5 . 1 . . . . 5 . . 4 . . . . . . . . 1 . . . Repair Station Hacks 13 | . 4 . . . . 2 . . . . . . 1 . . . . . . . . . . . . 2 4 . Scan Component 6 | . 2 . . . . 1 . . . . . . . . . . . . . . . . . . . 1 2 . Repair 6 | . 2 . . . . 1 . . . . . . . . . . . . . . . . . . . 1 2 . Refit 1 | . . . . . . . . . . . . . 1 . . . . . . . . . . . . . . . Recycling Unit Hacks 6 | . 2 . . . 1 1 . 2 . . . . . . . . . . . . . . . . . . . . Report Inventory 6 | . 2 . . . 1 1 . 2 . . . . . . . . . . . . . . . . . . . . Scanalyzer 3 | . . . . . 1 . . 2 . . . . . . . . . . . . . . . . . . . . Insert Component 2 | . . . . . 1 . . 1 . . . . . . . . . . . . . . . . . . . . Analyze 1 | . . . . . . . . 1 . . . . . . . . . . . . . . . . . . . . Garrison Access Hacks 3 | . . . . . 1 1 . 1 . . . . . . . . . . . . . . . . . . . . Seal Access 3 | . . . . . 1 1 . 1 . . . . . . . . . . . . . . . . . . . . Unauthorized Hacks 35 | . 1 . . . . 18 . 3 . . . . 4 . . 5 . . . . . . . 1 1 . 2 . Terminals 26 | . 1 . . . . 14 . 3 . . . . 2 . . 3 . . . . . . . 1 . . 2 . Track 2 | . . . . . . 1 . . . . . . . . . . . . . . . . . . . . 1 . Assimilate 10 | . . . . . . 5 . 3 . . . . . . . 2 . . . . . . . . . . . . Botnet 12 | . . . . . . 7 . . . . . . 2 . . 1 . . . . . . . 1 . . 1 . Disrupt 1 | . . . . . . 1 . . . . . . . . . . . . . . . . . . . . . . Operators 1 | . 1 . . . . . . . . . . . . . . . . . . . . . . . . . . . Fabricators 9 | . . . . . . 4 . . . . . . 2 . . 2 . . . . . . . . 1 . . . Prioritize 4 | . . . . . . 1 . . . . . . 1 . . 1 . . . . . . . . 1 . . . Siphon 5 | . . . . . . 3 . . . . . . 1 . . 1 . . . . . . . . . . . . Repair Stations . | . . . . . . . . . . . . . . . . . . . . . . . . . . . . . Recycling Units . | . . . . . . . . . . . . . . . . . . . . . . . . . . . . . Scanalyzers . | . . . . . . . . . . . . . . . . . . . . . . . . . . . . . Garrison Access . | . . . . . . . . . . . . . . . . . . . . . . . . . . . . . Data Cores Recovered . | . . . . . . . . . . . . . . . . . . . . . . . . . . . . . Used . | . . . . . . . . . . . . . . . . . . . . . . . . . . . . . Hacking Detections 47 | . 6 . . . 7 15 . 7 . . . . 4 . . 2 . . . . . . . 1 1 1 2 1 Full Trace Events 6 | . . . . . . 3 . 3 . . . . . . . . . . . . . . . . . . . . Feedback Events 2 | . . . . . . 2 . . . . . . . . . . . . . . . . . . . . . . Corruption 1 | . . . . . . 1 . . . . . . . . . . . . . . . . . . . . . . Hackware Fried 1 | . . . . . . 1 . . . . . . . . . . . . . . . . . . . . . . Feedback Blocked . | . . . . . . . . . . . . . . . . . . . . . . . . . . . . . Robot Schematics Acquired 6 | . . . . . . . . . . . 6 . . . . . . . . . . . . . . . . . Robots Built . | . . . . . . . . . . . . . . . . . . . . . . . . . . . . . Matter . | . . . . . . . . . . . . . . . . . . . . . . . . . . . . . Time . | . . . . . . . . . . . . . . . . . . . . . . . . . . . . . Total Robot Build Rating . | . . . . . . . . . . . . . . . . . . . . . . . . . . . . . Part Schematics Acquired 22 | . . . . . . 4 . 2 . . 6 . 2 . . 1 . . 4 . . . . . . . 3 . Parts Built 15 | . . . . . . 6 . 1 . . . . 4 . . 3 . . . . . . . . 1 . . . Matter 2574 | . . . . . . 898 . 212 . . . . 585 . . 601 . . . . . . . . 278 . . . Time 938 | . . . . . . 430 . 53 . . . . 140 . . 269 . . . . . . . . 46 . . . Total Part Build Rating 80 | . . . . . . 26 . 6 . . . . 22 . . 17 . . . . . . . . 9 . . . Parts Repaired 6 | . 2 . . . . 1 . . . . . . . . . . . . . . . . . . . 1 2 . Time 172 | . 52 . . . . 40 . . . . . . . . . . . . . . . . . . . 36 44 . Parts Recycled . | . . . . . . . . . . . . . . . . . . . . . . . . . . . . . Recycled Matter . | . . . . . . . . . . . . . . . . . . . . . . . . . . . . . Retrieved Matter . | . . . . . . . . . . . . . . . . . . . . . . . . . . . . . Retrieved Components . | . . . . . . . . . . . . . . . . . . . . . . . . . . . . . Parts Scanalyzed 1 | . . . . . . . . 1 . . . . . . . . . . . . . . . . . . . . Part Schematics Acquired 1 | . . . . . . . . 1 . . . . . . . . . . . . . . . . . . . . Parts Damaged . | . . . . . . . . . . . . . . . . . . . . . . . . . . . . . Bothacking | -11 -10 -10 -10 -9 -8 -7 -7 -7 -7 -7 -7 -6 -6 -6 -6 -5 -5 -5 -5 -4 -4 -4 -4 -3 -3 -2 -2 -2 ------------ Run | Scr Mat Min Exi Min Mat Fac Was Fac Low Low Dat Pro Fac Low Low Fac Upp Upp Zhi Pro Fac Arm Lab Res Tes Res Qua Sec Used RIF Installer . | . . . . . . . . . . . . . . . . . . . . . . . . . . . . . Robots Hacked 1 | . . . . . . 1 . . . . . . . . . . . . . . . . . . . . . . Non-combat 1 | . . . . . . 1 . . . . . . . . . . . . . . . . . . . . . . Combat . | . . . . . . . . . . . . . . . . . . . . . . . . . . . . . Robot Hacks Applied 1 | . . . . . . 1 . . . . . . . . . . . . . . . . . . . . . . find_chute 1 | . . . . . . 1 . . . . . . . . . . . . . . . . . . . . . . Relay Couplers Released . | . . . . . . . . . . . . . . . . . . . . . . . . . . . . . Robots Rewired . | . . . . . . . . . . . . . . . . . . . . . . . . . . . . . Allies Hacked . | . . . . . . . . . . . . . . . . . . . . . . . . . . . . . Hacks Repelled . | . . . . . . . . . . . . . . . . . . . . . . . . . . . . . Allies | -11 -10 -10 -10 -9 -8 -7 -7 -7 -7 -7 -7 -6 -6 -6 -6 -5 -5 -5 -5 -4 -4 -4 -4 -3 -3 -2 -2 -2 -------- Run | Scr Mat Min Exi Min Mat Fac Was Fac Low Low Dat Pro Fac Low Low Fac Upp Upp Zhi Pro Fac Arm Lab Res Tes Res Qua Sec Total Allies 17 | . . . . . . 4 1 2 . 3 . . . . . 1 . . . . . . . . . . . 6 Largest Group 3 | . . . . . . 2 1 1 . 3 . . . . . 1 1 . . . . . . . . . . 3 Highest-Rated Group 93 | . . . . . . 36 31 26 . 93 . . . . . 10 10 . . . . . . . . . . 37 Highest-Rated Ally 31 | . . . . . . 26 31 26 . 31 . . . . . 10 10 . . . . . . . . . . 14 Total Orders 2 | . . . . . . . . 2 . . . . . . . . . . . . . . . . . . . . STAY 1 | . . . . . . . . 1 . . . . . . . . . . . . . . . . . . . . FOLLOW 1 | . . . . . . . . 1 . . . . . . . . . . . . . . . . . . . . Ally Attacks 48 | . . . . . . . 11 . . 25 . . . . . . . . . . . . . . . . . 12 Total Damage 756 | . . . . . . . 166 . . 380 . . . . . . . . . . . . . . . . . 210 Kills 4 | . . . . . . . . . . 4 . . . . . . . . . . . . . . . . . . Allies Corrupted . | . . . . . . . . . . . . . . . . . . . . . . . . . . . . . Allies Melted . | . . . . . . . . . . . . . . . . . . . . . . . . . . . . . Intel | -11 -10 -10 -10 -9 -8 -7 -7 -7 -7 -7 -7 -6 -6 -6 -6 -5 -5 -5 -5 -4 -4 -4 -4 -3 -3 -2 -2 -2 ------- Run | Scr Mat Min Exi Min Mat Fac Was Fac Low Low Dat Pro Fac Low Low Fac Upp Upp Zhi Pro Fac Arm Lab Res Tes Res Qua Sec Robot Analysis Total 118 | . 2 . . . . . . . . . 115 . . . . . . . . . . . . . . . 1 . Derelict Logs Recovered 12 | . . 2 . 2 . . . . 1 2 . . . 1 . . 2 1 . 1 . . . . . . . . Drone Launches . | . . . . . . . . . . . . . . . . . . . . . . . . . . . . . Drone Recoveries . | . . . . . . . . . . . . . . . . . . . . . . . . . . . . . Exploration | -11 -10 -10 -10 -9 -8 -7 -7 -7 -7 -7 -7 -6 -6 -6 -6 -5 -5 -5 -5 -4 -4 -4 -4 -3 -3 -2 -2 -2 ------------- Run | Scr Mat Min Exi Min Mat Fac Was Fac Low Low Dat Pro Fac Low Low Fac Upp Upp Zhi Pro Fac Arm Lab Res Tes Res Qua Sec Turns Passed 8237 | 78 1154 544 205 187 1710 993 28 381 156 163 53 182 255 59 9 411 180 204 60 42 152 58 127 38 54 76 174 504 Spaces Moved 9956 | 43 589 295 129 116 752 1558 71 906 377 442 105 433 288 210 34 354 452 430 154 154 126 129 162 99 110 124 343 971 Core 115 | 5 . . . . . . . . . . . . . . . . . . . . . . . . . . . 110 Treads 1919 | 38 589 295 129 116 752 . . . . . . . . . . . . . . . . . . . . . . . Legs . | . . . . . . . . . . . . . . . . . . . . . . . . . . . . . Wheels . | . . . . . . . . . . . . . . . . . . . . . . . . . . . . . Hover . | . . . . . . . . . . . . . . . . . . . . . . . . . . . . . Flight 7922 | . . . . . . 1558 71 906 377 442 105 433 288 210 34 354 452 430 154 154 126 129 162 99 110 124 343 861 Fastest Speed 5 | 50 160 160 160 160 160 26 32 32 32 26 17 17 14 26 26 23 26 5 23 5 5 11 20 5 11 11 5 6 Average Speed 55 | 147 160 160 160 160 177 31 32 32 32 31 26 31 28 26 26 25 26 26 27 21 21 19 20 21 20 18 19 34 Slowest Speed 750 | 160 160 160 160 160 220 32 32 32 32 32 32 35 35 26 26 26 26 29 29 26 23 20 23 23 23 20 20 750 Overloaded Moves 209 | . . . . . . . . . . . 18 10 16 . . . . 5 . 16 10 8 . 4 12 17 12 81 Propulsion Burnouts . | . . . . . . . . . . . . . . . . . . . . . . . . . . . . . Robots Hopped 80 | . . . . . . 36 . 8 . 2 3 . 5 . . . . . . . 5 1 . 2 3 3 . 12 Cave-ins Triggered . | . . . . . . . . . . . . . . . . . . . . . . . . . . . . . Teleports 2 | . . . . . . . . . . . . . . . . . . . . . . 1 . . . . . 1 Exploration Rate (%) 42 | 5 95 60 48 36 66 34 73 28 48 52 77 62 11 46 10 11 60 67 60 41 5 11 97 4 17 8 51 56 Regions Visited 28 Branch Regions 18 Pre-discovered Areas 34 | . . 1 1 1 . . . . . 1 26 . . . . . 1 . 3 . . . . . . . . . Known Exits Taken 20 | . . . . . . . . 1 1 1 1 1 1 1 1 1 1 1 1 1 1 1 1 1 1 1 1 . Unknown Exits Taken 6 | 1 1 1 1 1 1 . . . . . . . . . . . . . . . . . . . . . . . Scrap Searched 17 | . . 1 . . . . . . 7 3 . 1 . 1 . . . 4 . . . . . . . . . . Spaces Dug 141 | . . . . . . 29 . 13 7 3 . 16 10 . . 27 2 4 . . 4 5 . 4 3 2 9 3 Terrain Destroyed 225 | . . . . . 17 29 . 13 7 19 . 22 10 . . 66 2 4 . . 4 5 . 4 3 2 14 4 Melee 130 | . . . . . . 29 . 13 7 3 . 9 10 . . 27 2 4 . . 4 5 . 4 3 2 5 3 Projectile 10 | . . . . . . . . . . . . . . . . . . . . . . . . . . . 9 1 AOE 85 | . . . . . 17 . . . . 16 . 13 . . . 39 . . . . . . . . . . . . Terrain Rammed . | . . . . . . . . . . . . . . . . . . . . . . . . . . . . . Walls Destroyed . | . . . . . . . . . . . . . . . . . . . . . . . . . . . . . Machines Disabled . | . . . . . . . . . . . . . . . . . . . . . . . . . . . . . Actions | -11 -10 -10 -10 -9 -8 -7 -7 -7 -7 -7 -7 -6 -6 -6 -6 -5 -5 -5 -5 -4 -4 -4 -4 -3 -3 -2 -2 -2 --------- Run | Scr Mat Min Exi Min Mat Fac Was Fac Low Low Dat Pro Fac Low Low Fac Upp Upp Zhi Pro Fac Arm Lab Res Tes Res Qua Sec Total 11911 | 55 720 324 128 119 963 1961 75 961 391 454 124 460 438 212 33 630 501 509 171 162 239 152 219 105 128 163 423 1091 Wait 1245 | . 66 1 . . 33 337 2 50 5 4 15 8 127 . . 233 42 72 . 7 113 17 . 3 14 32 44 20 Move 9781 | 42 588 294 128 115 751 1492 70 890 376 437 98 432 278 209 33 353 451 429 153 153 117 126 161 95 103 117 342 948 Hop 67 | . . . . . . 30 . 7 . 2 3 . 4 . . . . . . . 3 1 . 1 3 2 . 11 Pick Up 71 | 7 13 3 . 2 20 4 . . . 1 . . . 1 . 3 . . 2 1 . 1 7 . . . 4 2 Fast Attach 83 | 5 3 . . . 13 12 1 1 . . 3 2 6 . . 3 . . 8 . . . 8 2 1 3 4 8 Attach 33 | 1 3 . . . 2 8 . . . 1 . 2 . 1 . 1 . . . 1 2 1 3 . . . 1 6 Detach 21 | . . . . . 1 4 . . . . 3 2 3 . . 1 . . . . . . 1 . . 2 . 4 Swap 32 | . 1 1 . . 7 6 1 . . 3 1 2 3 . . 3 . 1 . . . 1 2 . . . . . Drop 97 | . 3 2 . 2 19 27 1 . . 1 . 1 6 . . 4 . . 8 . . . 12 . 1 . 7 3 Fire 203 | . 42 22 . . 112 . . . . 2 . 2 . . . 2 . . . . . . . . . . 15 6 Melee 204 | . . . . . . 41 . 13 10 3 1 9 11 1 . 27 8 7 . . 4 5 25 4 6 6 6 17 Ram . | . . . . . . . . . . . . . . . . . . . . . . . . . . . . . Kick . | . . . . . . . . . . . . . . . . . . . . . . . . . . . . . Crush 7 | . 1 1 . . 5 . . . . . . . . . . . . . . . . . . . . . . . Escape Stasis 67 | . . . . . . . . . . . . . . . . . . . . . . . . . . 1 . 66 Rewire . | . . . . . . . . . . . . . . . . . . . . . . . . . . . . . Trap . | . . . . . . . . . . . . . . . . . . . . . . . . . . . . . Miscellaneous . | . . . . . . . . . . . . . . . . . . . . . . . . . . . . . Route ------- -11/Scrapyard -10/Materials (discovered 5 exits: [*Mat x3] / [*Min x2]) -10/Mines (discovered 2 exits: [*Mat] / *Exi) -10/Exiles -9/Mines -8/Materials (discovered 4 exits: *Fac x3 / [*Sto]) -7/Factory (discovered 3 exits: *Fac / *Low x2) -7/Waste -7/Factory (discovered 2 exits: *Low x2) -7/Lower Caves -7/Lower Caves -7/Data Miner -6/Proximity Caves -6/Factory (discovered 2 exits: *Low x2) -6/Lower Caves -6/Lower Caves -5/Factory (discovered 3 exits: Fac / *Upp x2) -5/Upper Caves -5/Upper Caves (discovered 2 exits: *Fac / *Zhi) -5/Zhirov -4/Proximity Caves -4/Factory -4/Armory -4/Lab -3/Research (discovered 2 exits: *Tes x2) -3/Testing -2/Research -2/Quarantine -2/Section 7 History --------- Turn | Location | Event 4 | -11/Scrapyard | Discovered new exit (range 16) 79 | -11/Scrapyard | Entered Materials 273 | -10/Materials | Discovered new exit (range 8) 372 | -10/Materials | Build established: Mutant 415 | -10/Materials | Discovered new exit (range 7) 483 | -10/Materials | Discovered new exit (range 8) 577 | -10/Materials | Discovered new exit (range 16) 923 | -10/Materials | Discovered new exit (range 11) 1094 | -10/Materials | Repaired Lgt. Treads 1121 | -10/Materials | Repaired Lgt. Treads 1233 | -10/Materials | Entered Mines 1338 | -10/Mines | Learned Materials stockpile data 1343 | -10/Mines | Discovered new exit (range 8) 1500 | -10/Mines | Learned location of Storage (-8) 1739 | -10/Mines | Learned Materials emergency access door positions 1769 | -10/Mines | Deemed a non-threat by the Exiles lab entrance 1771 | -10/Mines | Discovered new exit (range 5) 1777 | -10/Mines | Entered Exiles 1816 | -10/Exiles | Met 8R-AWN 1843 | -10/Exiles | Met EX-HEX 1907 | -10/Exiles | Met EX-DEC 1915 | -10/Exiles | Learned location of Zion (-6) 1963 | -10/Exiles | Discovered new exit (range 14) 1982 | -10/Exiles | Entered Mines 2005 | -9/Mines | Found a damaged Exp. Sensor Array with a note attached 2013 | -9/Mines | Found Prototype Device 2019 | -9/Mines | Learned Materials security intel 2153 | -9/Mines | Discovered new exit (range 10) 2169 | -9/Mines | Entered Materials 2169 | -8/Materials | Evolved 4 slots: Propulsion x1, Utility x3 2179 | -8/Materials | Identified Exp. Sensor Array 2381 | -8/Materials | Discovered new exit (range 10) 2873 | -8/Materials | Discovered new exit (range 16) 3176 | -8/Materials | Discovered new exit (range 15) 3193 | -8/Materials | Garrison activated, responded to threat 3531 | -8/Materials | Build established: Hauler-Mutant 3726 | -8/Materials | Discovered new exit (range 5) 3879 | -8/Materials | Entered Factory 3879 | -7/Factory | Evolved 2 slots: Propulsion x1, Utility x1 3935 | -7/Factory | Discovered new exit (range 18) 3949 | -7/Factory | Identified exit to Lower Caves 4136 | -7/Factory | Repaired Exp. Sensor Array 4233 | -7/Factory | Build established: Hacker-Sprinter 4379 | -7/Factory | Fabricated Cld. VTOL Module (x1) 4381 | -7/Factory | Fabricated Cld. VTOL Module (x1) 4387 | -7/Factory | Fabricated Hvy. Pick? 4452 | -7/Factory | Fabricated Cld. VTOL Module (x1) 4521 | -7/Factory | Fabricated Cld. VTOL Module (x1) 4578 | -7/Factory | Local fabrication network quarantined 4746 | -7/Factory | Discovered new exit (range 10) 4841 | -7/Factory | Hacking Suite fried by hacking feedback 4872 | -7/Factory | Manually triggered Chute Trap 4872 | -7/Factory | Sucked down chute 4872 | -7/Factory | Entered Waste 4873 | -7/Waste | Met a frightened Derelict 4875 | -7/Waste | Found Prototype Slashing Weapon 4875 | -7/Waste | Identified Vibroblade 4878 | -7/Waste | Spotted C-40 Crusher 4878 | -7/Waste | Spotted C-40 Crusher 4884 | -7/Waste | Spotted C-40 Crusher 4884 | -7/Waste | Spotted C-40 Crusher 4884 | -7/Waste | Spotted C-40 Crusher 4898 | -7/Waste | Discovered new exit (range 10) 4900 | -7/Waste | Identified exit to Factory 4900 | -7/Waste | Entered Factory 5183 | -7/Factory | Fabricated Adv. Hacking Suite (x1) 5198 | -7/Factory | Local fabrication network quarantined 5281 | -7/Factory | Entered Lower Caves 5366 | -7/Lower Caves | Identified exit to Lower Caves 5437 | -7/Lower Caves | Entered another Lower Caves area 5440 | -7/Lower Caves | Encountered a Warlord checkpoint 5453 | -7/Lower Caves | A Commander dispatched an escort 5453 | -7/Lower Caves | Learned Extension stockpile data 5453 | -7/Lower Caves | Learned Armory stockpile data 5470 | -7/Lower Caves | Learned location of 1 exit from Proximity Caves 5597 | -7/Lower Caves | Discovered new exit (range 7) 5599 | -7/Lower Caves | Identified exit to Data Miner 5600 | -7/Lower Caves | Entered Data Miner 5600 | -7/Data Miner | Discovered new exit (range 6) 5608 | -7/Data Miner | Met Data Miner 5616 | -7/Data Miner | Learned location of Section 7 (-2) 5616 | -7/Data Miner | Acquired the access code to Warlord's prototype stash 5618 | -7/Data Miner | Received God Mode back door access code from Data Miner 5634 | -7/Data Miner | Destroyed Data Miner 5637 | -7/Data Miner | Interfaced with the Data Conduit 5638 | -7/Data Miner | Found Prototype Hackware 5638 | -7/Data Miner | Identified Ghost Barrier 5640 | -7/Data Miner | Found Prototype Hackware 5640 | -7/Data Miner | Identified Quantum Router 5643 | -7/Data Miner | Found Prototype Hackware 5643 | -7/Data Miner | Identified Deep Network Scanner 5653 | -7/Data Miner | Identified exit to Proximity Caves 5653 | -7/Data Miner | Entered Proximity Caves 5654 | -6/Proximity Caves | Identified exit to Factory 5835 | -6/Proximity Caves | Attracted the attention of an 0b10 outpost 5835 | -6/Proximity Caves | Entered Factory 5835 | -6/Factory | Evolved 2 slots: Power x1, Propulsion x1 5836 | -6/Factory | Loaded intel: 282 machine locations 5885 | -6/Factory | Identified exit to Lower Caves 5974 | -6/Factory | Fabricated Cld. Cesium-ion Thruster (x1) 6002 | -6/Factory | Fabricated Mic. Fission Core (x2) 6045 | -6/Factory | Fabricated Cld. Cesium-ion Thruster (x1) 6090 | -6/Factory | Entered Lower Caves 6102 | -6/Lower Caves | Learned 4 Factory zone layouts 6146 | -6/Lower Caves | Build established: Wizard-Sprinter 6148 | -6/Lower Caves | Discovered new exit (range 9) 6149 | -6/Lower Caves | Identified exit to Lower Caves 6149 | -6/Lower Caves | Entered another Lower Caves area 6155 | -6/Lower Caves | Discovered new exit (range 12) 6158 | -6/Lower Caves | Identified exit to Factory 6158 | -6/Lower Caves | Entered Factory 6158 | -5/Factory | Evolved 2 slots: Utility x2 6159 | -5/Factory | Identified exit to Factory 6160 | -5/Factory | Loaded intel: 204 machine locations 6264 | -5/Factory | Identified exit to Upper Caves 6338 | -5/Factory | Fabricated Imp. Cloaking Device (x1) 6416 | -5/Factory | Fabricated Cld. Cesium-ion Thruster (x1) 6492 | -5/Factory | Fabricated Cld. Cesium-ion Thruster (x1) 6569 | -5/Factory | Entered Upper Caves 6569 | -5/Upper Caves | Accompanied by 1 ally 6621 | -5/Upper Caves | Learned Factory emergency access door positions 6745 | -5/Upper Caves | Discovered new exit (range 7) 6749 | -5/Upper Caves | Identified exit to Upper Caves 6749 | -5/Upper Caves | Entered another Upper Caves area 6750 | -5/Upper Caves | Discovered exit to Factory (range 10) 6946 | -5/Upper Caves | Discovered new exit (range 10) 6949 | -5/Upper Caves | Identified exit to Zhirov 6953 | -5/Upper Caves | Entered Zhirov 6953 | -5/Zhirov | Discovered new exit (range 3) 6959 | -5/Zhirov | Met Zhirov 6967 | -5/Zhirov | Zhirov requested help retrieving the SGEMP Prototype 6973 | -5/Zhirov | Found Alien Artifact 6973 | -5/Zhirov | Identified Integrated Reactor 6973 | -5/Zhirov | Installed Integrated Reactor, increased core energy generation (+10) 6978 | -5/Zhirov | Found Alien Artifact 7013 | -5/Zhirov | Identified exit to Proximity Caves 7013 | -5/Zhirov | Entered Proximity Caves 7013 | -4/Proximity Caves | Spotted B-86 Titan 7029 | -4/Proximity Caves | Learned Research terminal intel 7053 | -4/Proximity Caves | Discovered exit to Factory (range 9) 7055 | -4/Proximity Caves | Entered Factory 7055 | -4/Factory | Evolved 2 slots: Propulsion x1, Utility x1 7056 | -4/Factory | Identified exit to Armory 7058 | -4/Factory | Loaded intel: 250 machine locations 7207 | -4/Factory | Entered Armory 7209 | -4/Armory | Loaded intel: 88 machine locations 7225 | -4/Armory | Spotted B-86 Titan 7263 | -4/Armory | Identified Transdimensional Reconstructor 7263 | -4/Armory | Warped through subspace to slip node 7263 | -4/Armory | Discovered new exit (range 1) 7263 | -4/Armory | Identified exit to Lab 7265 | -4/Armory | Entered Lab 7266 | -4/Lab | Discovered new exit (range 9) 7267 | -4/Lab | Identified exit to Research 7268 | -4/Lab | Hidden lab's door opened automatically 7268 | -4/Lab | Sensor layout match revealed 7269 | -4/Lab | Gained access to the hidden lab's interior 7269 | -4/Lab | Detected by scanners 7271 | -4/Lab | Found Alien Artifact 7276 | -4/Lab | Found Integrated Reactor 7276 | -4/Lab | Installed Integrated Reactor, increased core energy generation (+10) 7282 | -4/Lab | Confronted by A5 7284 | -4/Lab | Found Transdimensional Reconstructor 7335 | -4/Lab | Destroyed A5 7345 | -4/Lab | Found Exp. Hacking Suite 7358 | -4/Lab | Found Prototype Protection 7358 | -4/Lab | Identified Med. Regenerative Plating 7363 | -4/Lab | Found Deep Network Scanner 7366 | -4/Lab | Found Prototype Energy Gun 7366 | -4/Lab | Identified Hyp. EM Gauss Rifle 7368 | -4/Lab | Found Prototype Energy Gun 7368 | -4/Lab | Identified Tachyon Dispersion Ray 7375 | -4/Lab | Decrypted terminal 7375 | -4/Lab | Acquired modification code for an L2 power cell 7384 | -4/Lab | Found Alien Artifact 7390 | -4/Lab | Decrypted terminal 7391 | -4/Lab | Decrypted terminal 7392 | -4/Lab | Entered Research 7392 | -3/Research | Evolved 2 slots: Utility x2 7393 | -3/Research | Loaded intel: 102 machine locations 7394 | -3/Research | Loaded intel: 14 terminal locations 7408 | -3/Research | Identified exit to Testing 7430 | -3/Research | Entered Testing 7431 | -3/Testing | Loaded intel: 73 machine locations 7431 | -3/Testing | Spotted PL-GZRATI157Y 7474 | -3/Testing | Fabricated Adv. Reaction Control System (x1) 7482 | -3/Testing | Discovered new exit (range 10) 7484 | -3/Testing | Identified exit to Research 7484 | -3/Testing | Entered Research 7484 | -2/Research | Evolved 2 slots: Utility x2 7485 | -2/Research | Loaded intel: 90 machine locations 7486 | -2/Research | Found Exp. Signal Interpreter 7554 | -2/Research | Repaired Exp. Energy Well 7558 | -2/Research | Spotted B-90 Cyclops 7558 | -2/Research | Discovered new exit (range 13) 7560 | -2/Research | Identified exit to Quarantine 7560 | -2/Research | Entered Quarantine 7561 | -2/Quarantine | Loaded intel: 61 machine locations 7576 | -2/Quarantine | Found Alien Artifact 7589 | -2/Quarantine | Identified Core Reset Matrix 7589 | -2/Quarantine | Identified Core Regenerator 7589 | -2/Quarantine | Identified Stasis Generator 7589 | -2/Quarantine | Used Core Reset Matrix 7590 | -2/Quarantine | Found Matter Drive 7593 | -2/Quarantine | Detected hypermatrix surge 7593 | -2/Quarantine | Sensed 13 artifacts in vicinity 7626 | -2/Quarantine | Found Sigix Broadsword 7649 | -2/Quarantine | Found Subatomic Replicator 7682 | -2/Quarantine | Repaired Cld. Cesium-ion Thruster 7701 | -2/Quarantine | Repaired Mic. Fission Core 7721 | -2/Quarantine | Spotted Fortress 7732 | -2/Quarantine | Discovered new exit (range 6) 7733 | -2/Quarantine | Identified exit to Section 7 7734 | -2/Quarantine | Entered Section 7 7735 | -2/Section 7 | Sensed 19 artifacts in vicinity 7735 | -2/Section 7 | Spotted S7 Guard 7747 | -2/Section 7 | Scanned by Researcher 7756 | -2/Section 7 | Found Integrated Singularity Reactor 7756 | -2/Section 7 | Installed Integrated Singularity Reactor, increased core energy generation (+20) 7805 | -2/Section 7 | Spotted Alpha 7 7806 | -2/Section 7 | Spotted Alpha 7 7807 | -2/Section 7 | Spotted B-99 Colossus 7830 | -2/Section 7 | Found Integrity Redistributor 7832 | -2/Section 7 | Found Integrity Redistributor 7832 | -2/Section 7 | Used Integrity Redistributor, redistributed integrity from core (-32) 7841 | -2/Section 7 | Found LRC Armor 7841 | -2/Section 7 | Installed LRC Armor, increased core integrity (+250) 7843 | -2/Section 7 | Found LRC Armor 7843 | -2/Section 7 | Installed LRC Armor, increased core integrity (+250) 7907 | -2/Section 7 | Spotted Striker 7907 | -2/Section 7 | Spotted Striker 7908 | -2/Section 7 | Spotted Executioner 7923 | -2/Section 7 | Spotted Executioner 7923 | -2/Section 7 | Spotted Executioner 7940 | -2/Section 7 | Intercept squad dispatched 7949 | -2/Section 7 | Spotted Tracker 7952 | -2/Section 7 | Spotted Tracker 7976 | -2/Section 7 | Warped through subspace 8059 | -2/Section 7 | Spotted Executioner 8079 | -2/Section 7 | System corruption reached 10% 8151 | -2/Section 7 | Lost 8 parts (1p2n4u1w) 8173 | -2/Section 7 | Core integrity fell below 50% 8177 | -2/Section 7 | System corruption reached 30% 8201 | -2/Section 7 | Emitted hypermatrix ping 8206 | -2/Section 7 | Assembled emerged from beneath the floor 8220 | -2/Section 7 | Core integrity fell below 20% 8231 | -2/Section 7 | Found Terrabomb 8232 | -2/Section 7 | Lost 8 parts (1p2n5u) 8232 | -2/Section 7 | Found Terrabomb 8232 | -2/Section 7 | Used Terrabomb 8238 | -2/Section 7 | Destroyed by H-88 Terminator with KE Penetrator Last Messages --------------- 08201_ Striker springs to life. 08203_ Knocked back. 08204_ Slug penetrates Navigation. 08206_ Assembled emerge from beneath the floor. 08207_ ALERT: Hostile activity reported, dispatching reinforcements to area. 08209_ Slug penetrates L2 Fabricator. 08216_ Held in stasis. 08216_ C-65 Expert is analyzing... 08218_ AVASHY IP ZCS=DSI3RMOGQ 08219_ Penetrated by Slug. 08222_ Slug penetrates Hull. 08231_ Acquired Terrabomb. 08232_ Terrabomb activated. 08234_ ALERT: Rogue bot located, Programmers report to Section 7 Zone 3Q. 08234_ Held in stasis. 08237_ System corrupted: Matter fused (-10). 08238_ Held in stasis. 08238_ C-65 Expert is analyzing... 08238_ Penetrated by Slug. Map ----- +----------------------------------------------------+ | | | | | | | | | | | | | | | | | | | | | | | | | | | | | ????????????? ???????????????? | | ???????????? ????????????????? | | ????????????? ?? ???????????? | | ?????????????? ???????????? | | ????????????? ??????????? | | ?????????????? ???????????? | | ??????????????? ????????????? | | ????????####??? ????????????? | | ######### #####"";;;;;;;";;;;;;;;;############### | | " """""""""";!";T T;"" ;"" "!" ""#"""" | | """""""""; KK !;!" """ "!#"" | | " ;;@; ;!" #?" ""# | | ;;;;;;;; #### | | "" T | | """ c " | | " "" | | " "" p | | " " "" | | " "" """" | | " " " """ "??" | | """ " "" "??" | | " " " """" " " | | " " k "" " | | " """"""" | | """"" " "????" | | ????"""" " """"""" k """""""""""" | | """"" """"""""""" | | " " " " " " | | " | | """"" """ | | ????"""" " " | | """"" """"" | | "?" """" " " " | | """"" "?"???" """" | | " "?????" """ "?? | | " """""""""" """""" | +----------------------------------------------------+ Best States ------------- Heat Dissipation 85 Energy Generation 81 Energy Capacity 1240 Matter Stores 300 Matter Capacity 300 Sight Range 18 Robot Scan Range 30 Terrain Scan Density 10 Cloak Strength 3 Power Amplification 40 Armor Coverage 225 Propulsion Shielding 90 Evasion (%) 80 Targeting Accuracy 6 Recoil Reduction 3 Offensive Hacking 66 Defensive Hacking 59 Item Schematics ----------------- Cmb. Linear Gravjet | -2/Quarantine | Hacked Adv. Reaction Control System | -2/Quarantine | Hacked Quantum Reactor | -2/Quarantine | Hacked Robot Schematics ------------------ None Fabricated ------------ Cld. VTOL Module | x1 | -7/Factory Cld. VTOL Module | x1 | -7/Factory Hvy. Pick | x2 | -7/Factory Cld. VTOL Module | x1 | -7/Factory Cld. VTOL Module | x1 | -7/Factory Adv. Hacking Suite | x1 | -7/Factory Cld. Cesium-ion Thruster | x1 | -6/Factory Mic. Fission Core | x2 | -6/Factory Cld. Cesium-ion Thruster | x1 | -6/Factory Imp. Cloaking Device | x1 | -5/Factory Cld. Cesium-ion Thruster | x1 | -5/Factory Cld. Cesium-ion Thruster | x1 | -5/Factory Adv. Reaction Control System | x1 | -3/Testing | Preloaded Alien Tech Used ----------------- Integrated Reactor Transdimensional Reconstructor Core Reset Matrix Sigix Broadsword Integrated Singularity Reactor Integrity Redistributor LRC Armor Terrabomb Achievements -------------- None Challenges ------------ None Game ------ Seed StormTiamatCompactor Manual? 0 Play Time 01:48:21 Cumulative 218.0 hours Start 2021.10.06 @ 15:35:31 End 2021.10.06 @ 17:24:47 Sessions 1 Manual Loads 0 Difficulty Rogue Special Mode None Game No. 271 Rogue 271 Adventurer 0 Explorer 0 Win Type - Total 8 Types 5/0/2/1/0/0/0/0/0 Lore% 84 Gallery% 82 Achievement% 67 Wizard Run 0 Options --------- ASCII 0 Keyboard 0 Movement Arrows Keybinds 0 Fullscreen 1 Font 18/SmallcapsGlow Map View 76x50 Tactical HUD 1 Map Filters NONE Filters NONE Steam 1 RUN: 060dcd81-2fe8-4197-9089-a6679fbcaa6b